[Event "95th Caplin Hastings Congress"]
[Site "Hastings"]
[Date "2020.01.04"]
[Round "8.19"]
[White "Brown, Thomas"]
[Black "Stoyanov, Viktor"]
[Result "0-1"]
[ECO "A20"]
[WhiteElo "2116"]
[BlackElo "2234"]
[Annotator "NA"]
[PlyCount "78"]
[EventDate "2019.12.28"]
[EventType "swiss"]
[EventCountry "ENG"]
[SourceTitle "playchess.com"]
[Source "ChessBase"]
[SourceQuality "1"]
[TimeControl "40/6600+30:3000+30"]

1. c4 {[%emt 0:09:32]} e5 {[%emt 0:15:19]} 2. g3 {[%emt 0:00:13]} h5 {[%emt 0:00:18]} 3. h3 {[%emt 0:05:28]} Nc6 {[%emt 0:00:26]} 4. Bg2 {[%emt 0:01:09]} Bc5 {[%emt 0:00:13]} 5. Nc3 {[%emt 0:00:22]} d6 {[%emt 0:00:34]} 6. a3 {[%emt 0:00:51]} Nge7 {[%emt 0:03:28]} 7. b4 {[%emt 0:03:56]} Bb6 {[%emt 0:00:56]} 8. e3 {[%emt 0:02:50]} a6 {[%emt 0:03:27]} 9. Nge2 {[%emt 0:03:02]} Be6 {[%emt 0:00:37]} 10. Nd5 {[%emt 0:00:26]} Ba7 {[%emt 0:00:41]} 11. Nxe7 {[%emt 0:08:28]} Qxe7 {[%emt 0:00:19]} 12. d3 {[%emt 0:04:47]} Qd7 {[%emt 0:01:11]} 13. Nc3 {[%emt 0:02:49]} f6 {[%emt 0:02:35]} 14. Bd2 {[%emt 0:07:22]} Kf7 {[%emt 0:02:21]} 15. Bd5 {[%emt 0:04:18]} Nd8 {[%emt 0:03:49]} 16. f4 {[%emt 0:09:57]} h4 {[%emt 0:31:43]} 17. Qf3 {[%emt 0:07:20]} hxg3 {[%emt 0:01:42]} 18. f5 {[%emt 0:01:47]} Bxd5 {[%emt 0:00:16]} 19. cxd5 {[%emt 0:01:16]} Kf8 {[%emt 0:04:45]} 20. Ke2 {[%emt 0:03:15]} Qf7 {[%emt 0:01:30]} 21. Rag1 {[%emt 0:01:52]} Qh5 {[%emt 0:00:24]} 22. Rxg3 {[%emt 0:00:25]} Qxf3+ {[%emt 0:00:17]} 23. Kxf3 {[%emt 0:00:27]} Nf7 {[%emt 0:00:13]} 24. Rhg1 {[%emt 0:16:02]} Rh7 {[%emt 0:01:00]} 25. Rc1 {[%emt 0:06:31]} Ke7 {[%emt 0:03:11]} 26. Na4 {[%emt 0:04:11]} Kd7 {[%emt 0:02:24]} 27. e4 {[%emt 0:03:07]} Rah8 {[%emt 0:00:48]} 28. Ke2 {[%emt 0:01:43]} Rxh3 {[%emt 0:08:14]} 29. Rxg7 {[%emt 0:00:48]} Rh2+ {[%emt 0:00:07]} 30. Kd1 {[%emt 0:01:04]} R8h7 {[%emt 0:00:20]} 31. Rg6 {[%emt 0:01:08]} Rf2 {[%emt 0:08:12]} 32. Nc3 {[%emt 0:05:56]} Ng5 {[%emt 0:04:08]} 33. Nb1 {[%emt 0:03:06]} Nf3 {[%emt 0:00:57]} 34. Kc2 {[%emt 0:00:55]} Be3 {[%emt 0:00:37]} 35. Rd1 {[%emt 0:00:29]} Rhh2 {[%emt 0:03:35]} 36. Rg7+ {[%emt 0:00:10]} Ke8 {[%emt 0:00:10]} 37. Rxc7 {[%emt 0:00:24]} Bxd2 {[%emt 0:00:15]} 38. Nxd2 {[%emt 0:00:36]} Nxd2 {[%emt 0:00:36]} 39. Rxb7 {[%emt 0:00:28]} Nxe4+ {[%emt 0:00:09]} 0-1

[Event "95th Caplin Hastings Congress"]
[Site "Hastings"]
[Date "2020.01.04"]
[Round "8.20"]
[White "Ratsma, Midas"]
[Black "White, Stuart A"]
[Result "1-0"]
[ECO "B51"]
[WhiteElo "2271"]
[BlackElo "2106"]
[Annotator "NA"]
[PlyCount "81"]
[EventDate "2019.12.28"]
[EventType "swiss"]
[EventCountry "ENG"]
[SourceTitle "playchess.com"]
[Source "ChessBase"]
[SourceQuality "1"]
[TimeControl "40/6600+30:3000+30"]

1. e4 {[%emt 0:11:06]} c5 {[%emt 0:09:35]} 2. Nf3 {[%emt 0:00:15]} d6 {[%emt 0:00:06]} 3. Bb5+ {[%emt 0:00:06]} Nd7 {[%emt 0:00:44]} 4. O-O {[%emt 0:00:09]} a6 {[%emt 0:01:18]} 5. Bd3 {[%emt 0:00:05]} Ngf6 {[%emt 0:00:40]} 6. Re1 {[%emt 0:00:29]} e6 {[%emt 0:00:25]} 7. c3 {[%emt 0:00:32]} b5 {[%emt 0:01:06]} 8. Bc2 {[%emt 0:00:51]} c4 {[%emt 0:01:54]} 9. a4 {[%emt 0:00:57]} Bb7 {[%emt 0:00:40]} 10. d4 {[%emt 0:02:14]} cxd3 {[%emt 0:01:10]} 11. Qxd3 {[%emt 0:00:07]} Nc5 {[%emt 0:08:42]} 12. Qe2 {[%emt 0:00:23]} bxa4 {[%emt 0:01:59]} 13. e5 {[%emt 0:00:13]} Nfd7 {[%emt 0:14:32]} 14. Bxa4 {[%emt 0:19:19]} Nxa4 {[%emt 0:03:23]} 15. Rxa4 {[%emt 0:02:59]} Nxe5 {[%emt 0:09:00]} 16. Nxe5 {[%emt 0:02:22]} dxe5 {[%emt 0:00:42]} 17. Qxe5 {[%emt 0:07:28]} Qd5 {[%emt 0:07:10]} 18. Qg3 {[%emt 0:14:40]} g6 {[%emt 0:11:00]} 19. Rd4 {[%emt 0:11:28]} Qc6 {[%emt 0:00:18]} 20. Bg5 {[%emt 0:03:28]} Bc5 {[%emt 0:07:56]} 21. Rc4 {[%emt 0:02:14]} Qd5 {[%emt 0:04:43]} 22. Nd2 {[%emt 0:02:45]} Bd6 {[%emt 0:07:57]} 23. Qg4 {[%emt 0:00:05]} h5 {[%emt 0:02:49]} 24. Qe4 {[%emt 0:00:05]} O-O {[%emt 0:03:49]} 25. Rd4 {[%emt 0:03:27]} Qb5 {[%emt 0:02:54]} 26. Qh4 {[%emt 0:04:31]} Bc5 {[%emt 0:01:34]} 27. Re5 {[%emt 0:04:05]} Qa5 {[%emt 0:03:59]} 28. Nb3 {[%emt 0:04:42]} Qa2 {[%emt 0:00:04]} 29. Rxc5 {[%emt 0:07:18]} Qxb3 {[%emt 0:00:05]} 30. Be7 {[%emt 0:02:04]} Qc2 {[%emt 0:02:00]} 31. h3 {[%emt 0:01:00]} Rfe8 {[%emt 0:03:00]} 32. Bf6 {[%emt 0:00:44]} Qc1+ {[%emt 0:05:37]} 33. Kh2 {[%emt 0:00:06]} e5 {[%emt 0:01:50]} 34. Rxe5 {[%emt 0:03:31]} Rxe5 {[%emt 0:02:11]} 35. Bxe5 {[%emt 0:00:05]} Qf1 {[%emt 0:00:59]} 36. Rg4 {[%emt 0:03:54]} Kh7 {[%emt 0:01:30]} 37. Qf6 {[%emt 0:00:47]} Rg8 {[%emt 0:00:28]} 38. Qxf7+ {[%emt 0:00:08]} Kh6 {[%emt 0:00:03]} 39. Qxg8 {[%emt 0:02:22]} hxg4 {[%emt 0:00:18]} 40. Bf4+ {[%emt 0:01:16]} g5 {[%emt 0:00:13]} 41. Qxg5+ {[%emt 0:50:06]} 1-0

[Event "95th Caplin Hastings Congress"]
[Site "Hastings"]
[Date "2020.01.04"]
[Round "8.21"]
[White "Thorpe, Thomas"]
[Black "Lyell, Mark"]
[Result "0-1"]
[ECO "B13"]
[WhiteElo "1924"]
[BlackElo "2294"]
[Annotator "NA"]
[PlyCount "72"]
[EventDate "2019.12.28"]
[EventType "swiss"]
[EventCountry "ENG"]
[SourceTitle "playchess.com"]
[Source "ChessBase"]
[SourceQuality "1"]
[TimeControl "40/6600+30:3000+30"]

1. e4 {[%emt 0:09:33]} c6 {[%emt 0:09:36]} 2. d4 {[%emt 0:00:40]} d5 {[%emt 0:00:05]} 3. exd5 {[%emt 0:00:00]} cxd5 {[%emt 0:00:00]} 4. Bd3 {[%emt 0:00:27]} Nc6 {[%emt 0:00:05]} 5. c3 {[%emt 0:01:22]} Qc7 6. h3 Nf6 {[%emt 0:01:41]} 7. Nf3 g6 {[%emt 0:00:30]} 8. O-O {[%emt 0:01:30]} Bf5 {[%emt 0:06:58]} 9. Be2 {[%emt 0:06:33]} Bg7 {[%emt 0:03:37]} 10. Re1 {[%emt 0:05:38]} O-O {[%emt 0:02:28]} 11. Nbd2 {[%emt 0:04:13]} Rab8 {[%emt 0:02:56]} 12. Nf1 {[%emt 0:12:30]} b5 {[%emt 0:01:21]} 13. Ng3 {[%emt 0:02:12]} Be4 {[%emt 0:04:23]} 14. Ng5 {[%emt 0:07:42]} Rfd8 {[%emt 0:03:01]} 15. N3xe4 {[%emt 0:05:47]} Nxe4 {[%emt 0:10:43]} 16. Bf3 {[%emt 0:02:53]} e5 {[%emt 0:01:37]} 17. dxe5 {[%emt 0:23:51]} Qxe5 {[%emt 0:04:21]} 18. Bxe4 {[%emt 0:02:25]} dxe4 {[%emt 0:00:14]} 19. Qb3 {[%emt 0:00:20]} Qf5 {[%emt 0:03:58]} 20. g4 {[%emt 0:03:20]} Qd5 {[%emt 0:09:54]} 21. Bf4 {[%emt 0:03:15]} Be5 {[%emt 0:02:54]} 22. Qxd5 {[%emt 0:03:37]} Rxd5 {[%emt 0:00:03]} 23. Bxe5 {[%emt 0:00:10]} Nxe5 {[%emt 0:03:03]} 24. Nxe4 {[%emt 0:00:21]} Nf3+ {[%emt 0:02:46]} 25. Kf1 {[%emt 0:02:17]} Kg7 {[%emt 0:00:30]} 26. Re3 {[%emt 0:00:48]} Ne5 {[%emt 0:01:16]} 27. b3 {[%emt 0:14:10]} Rb6 {[%emt 0:03:22]} 28. Ke2 {[%emt 0:02:10]} f5 {[%emt 0:03:08]} 29. gxf5 {[%emt 0:00:37]} gxf5 {[%emt 0:00:01]} 30. Rg1+ {[%emt 0:00:27]} Kh6 {[%emt 0:01:51]} 31. Ng5 {[%emt 0:02:23]} Ra6 {[%emt 0:11:42]} 32. h4 {[%emt 0:04:13]} Ng4 {[%emt 0:07:26]} 33. Re7 {[%emt 0:00:32]} Rxa2+ {[%emt 0:00:37]} 34. Kf3 {[%emt 0:00:30]} Rxf2+ {[%emt 0:00:35]} 35. Kg3 {[%emt 0:00:02]} Rd3+ {[%emt 0:00:12]} 36. Nf3 {[%emt 0:00:06]} Rdxf3# {[%emt 0:00:12]} 0-1

[Event "95th Caplin Hastings Congress"]
[Site "Hastings"]
[Date "2020.01.04"]
[Round "8.22"]
[White "Merriman, John"]
[Black "Willson, Ollie"]
[Result "1/2-1/2"]
[ECO "A06"]
[WhiteElo "2222"]
[BlackElo "2082"]
[Annotator "NA"]
[PlyCount "33"]
[EventDate "2019.12.28"]
[EventType "swiss"]
[EventCountry "ENG"]
[SourceTitle "playchess.com"]
[Source "ChessBase"]
[SourceQuality "1"]
[TimeControl "40/6600+30:3000+30"]

1. b3 {[%emt 0:09:34]} Nf6 {[%emt 0:09:56]} 2. Bb2 {[%emt 0:00:07]} d5 {[%emt 0:00:37]} 3. e3 {[%emt 0:00:21]} Bf5 {[%emt 0:04:37]} 4. Nf3 {[%emt 0:01:21]} e6 {[%emt 0:00:14]} 5. h3 {[%emt 0:02:26]} Nbd7 {[%emt 0:10:15]} 6. Nh4 {[%emt 0:03:13]} Bg6 {[%emt 0:01:34]} 7. Be2 {[%emt 0:05:03]} Be7 {[%emt 0:06:01]} 8. c4 {[%emt 0:04:48]} c6 {[%emt 0:03:32]} 9. d3 {[%emt 0:07:03]} a5 {[%emt 0:17:19]} 10. a3 {[%emt 0:15:46]} Qb6 {[%emt 0:13:56]} 11. Nxg6 {[%emt 0:10:26]} hxg6 {[%emt 0:02:11]} 12. Qc2 {[%emt 0:04:27]} Bd6 {[%emt 0:16:21]} 13. Nd2 {[%emt 0:02:44]} Qc7 {[%emt 0:00:35]} 14. d4 {[%emt 0:03:08]} Qd8 {[%emt 0:06:34]} 15. Rd1 {[%emt 0:03:39]} Qe7 {[%emt 0:00:26]} 16. Ra1 {[%emt 0:19:48]} g5 {[%emt 0:05:21]} 17. g3 {[%emt 0:11:13]} 1/2-1/2

[Event "95th Caplin Hastings Congress"]
[Site "Hastings"]
[Date "2020.01.04"]
[Round "8.23"]
[White "Hutchinson, Paul A"]
[Black "Keetman, Maaike"]
[Result "1-0"]
[ECO "D05"]
[WhiteElo "2112"]
[BlackElo "2193"]
[Annotator "NA"]
[PlyCount "91"]
[EventDate "2019.12.28"]
[EventType "swiss"]
[EventCountry "ENG"]
[SourceTitle "playchess.com"]
[Source "ChessBase"]
[SourceQuality "1"]
[TimeControl "40/6600+30:3000+30"]

1. d4 {[%emt 0:09:32]} e6 {[%emt 0:09:35]} 2. Nf3 {[%emt 0:00:07]} c5 {[%emt 0:00:09]} 3. e3 {[%emt 0:00:09]} Nf6 {[%emt 0:00:40]} 4. c3 {[%emt 0:00:07]} b6 {[%emt 0:00:56]} 5. Bd3 {[%emt 0:00:13]} Bb7 {[%emt 0:00:59]} 6. Nbd2 {[%emt 0:00:16]} d5 {[%emt 0:03:30]} 7. Ne5 {[%emt 0:02:59]} Bd6 {[%emt 0:04:38]} 8. f4 {[%emt 0:00:10]} c4 {[%emt 0:19:06]} 9. Bc2 {[%emt 0:00:37]} Nc6 {[%emt 0:00:11]} 10. Qf3 {[%emt 0:02:11]} Qc7 {[%emt 0:01:13]} 11. Ba4 {[%emt 0:08:19]} Rc8 {[%emt 0:05:37]} 12. g4 {[%emt 0:01:06]} h6 {[%emt 0:05:51]} 13. h4 {[%emt 0:08:50]} Ke7 {[%emt 0:10:05]} 14. Qg2 {[%emt 0:11:09]} Nxe5 {[%emt 0:18:43]} 15. fxe5 {[%emt 0:00:51]} Bxe5 {[%emt 0:00:08]} 16. dxe5 {[%emt 0:09:19]} Qxe5 {[%emt 0:00:14]} 17. Nf3 {[%emt 0:00:43]} Qe4 {[%emt 0:01:41]} 18. Bc2 {[%emt 0:00:47]} Qxg4 {[%emt 0:00:21]} 19. Qxg4 {[%emt 0:03:11]} Nxg4 {[%emt 0:00:05]} 20. Rf1 {[%emt 0:00:10]} Rcg8 {[%emt 0:08:19]} 21. Bd2 {[%emt 0:00:15]} g5 {[%emt 0:02:13]} 22. O-O-O {[%emt 0:01:45]} f5 {[%emt 0:03:11]} 23. Nd4 {[%emt 0:02:50]} gxh4 {[%emt 0:04:36]} 24. Rf3 {[%emt 0:07:19]} h3 {[%emt 0:00:54]} 25. Be1 {[%emt 0:00:24]} h2 {[%emt 0:01:29]} 26. Bh4+ {[%emt 0:00:15]} Kf7 {[%emt 0:01:22]} 27. Rh3 {[%emt 0:04:55]} Rg7 {[%emt 0:03:40]} 28. Re1 {[%emt 0:02:16]} Rhg8 {[%emt 0:01:07]} 29. Bd1 {[%emt 0:00:20]} Bc8 {[%emt 0:04:38]} 30. Nf3 {[%emt 0:05:28]} h5 {[%emt 0:03:07]} 31. Nxh2 {[%emt 0:07:43]} Kg6 {[%emt 0:00:55]} 32. Bg3 {[%emt 0:05:11]} e5 {[%emt 0:01:06]} 33. Rg1 {[%emt 0:10:09]} Kh6 {[%emt 0:00:59]} 34. Nxg4+ {[%emt 0:01:23]} fxg4 {[%emt 0:00:13]} 35. Rh2 {[%emt 0:00:10]} Rg5 {[%emt 0:01:08]} 36. Rf1 {[%emt 0:00:09]} Kg7 {[%emt 0:02:32]} 37. Rhf2 {[%emt 0:01:52]} Be6 {[%emt 0:00:09]} 38. a4 {[%emt 0:02:06]} e4 {[%emt 0:00:50]} 39. b3 {[%emt 0:03:19]} Rh8 {[%emt 0:01:20]} 40. Bh4 {[%emt 0:01:01]} g3 {[%emt 0:01:00]} 41. Bxg5 {[%emt 0:50:23]} gxf2 {[%emt 0:50:05]} 42. Rxf2 {[%emt 0:00:10]} Kg6 {[%emt 0:00:46]} 43. Bh4 {[%emt 0:01:18]} Bg4 {[%emt 0:01:15]} 44. b4 {[%emt 0:03:58]} Re8 {[%emt 0:00:00]} 45. Rf6+ {[%emt 0:00:00]} Kg7 {[%emt 0:00:00]} 46. Rd6 {[%emt 0:00:00]} 1-0

[Event "95th Caplin Hastings Congress"]
[Site "Hastings"]
[Date "2020.01.04"]
[Round "8.24"]
[White "Elwin, Adrian G"]
[Black "Brouwer, Dennis"]
[Result "0-1"]
[ECO "E92"]
[WhiteElo "1986"]
[BlackElo "2209"]
[Annotator "NA"]
[PlyCount "104"]
[EventDate "2019.12.28"]
[EventType "swiss"]
[EventCountry "ENG"]
[SourceTitle "playchess.com"]
[Source "ChessBase"]
[SourceQuality "1"]
[TimeControl "40/6600+30:3000+30"]

1. d4 {[%emt 0:09:34]} Nf6 {[%emt 0:10:03]} 2. c4 {[%emt 0:00:11]} g6 {[%emt 0:00:10]} 3. Nf3 {[%emt 0:00:21]} Bg7 {[%emt 0:00:12]} 4. Nc3 {[%emt 0:00:08]} O-O {[%emt 0:00:14]} 5. e4 {[%emt 0:02:58]} d6 {[%emt 0:00:09]} 6. Be2 {[%emt 0:03:58]} e5 {[%emt 0:00:11]} 7. dxe5 {[%emt 0:03:15]} dxe5 {[%emt 0:00:08]} 8. Qxd8 {[%emt 0:00:46]} Rxd8 {[%emt 0:00:09]} 9. Bg5 {[%emt 0:01:02]} Re8 {[%emt 0:04:23]} 10. O-O-O {[%emt 0:07:07]} h6 {[%emt 0:00:00]} 11. Bh4 {[%emt 0:01:01]} Na6 {[%emt 0:03:53]} 12. Nd2 {[%emt 0:07:11]} c6 {[%emt 0:06:34]} 13. Nb3 {[%emt 0:18:15]} Nd7 {[%emt 0:11:35]} 14. f3 {[%emt 0:04:13]} Nac5 {[%emt 0:13:36]} 15. Bf2 {[%emt 0:05:31]} Nxb3+ {[%emt 0:00:00]} 16. axb3 {[%emt 0:00:27]} Nf8 {[%emt 0:00:27]} 17. Bd3 {[%emt 0:04:51]} Ne6 {[%emt 0:00:14]} 18. Ne2 {[%emt 0:00:00]} Bf8 {[%emt 0:26:06]} 19. Be3 {[%emt 0:02:38]} h5 {[%emt 0:06:16]} 20. h4 {[%emt 0:10:34]} Bc5 {[%emt 0:06:31]} 21. Bd2 {[%emt 0:01:37]} a5 {[%emt 0:00:00]} 22. Bc3 {[%emt 0:02:48]} Be3+ {[%emt 0:02:10]} 23. Bd2 {[%emt 0:02:52]} Bxd2+ {[%emt 0:00:33]} 24. Rxd2 {[%emt 0:00:02]} Nc5 {[%emt 0:01:13]} 25. Bc2 {[%emt 0:00:46]} Be6 {[%emt 0:05:21]} 26. Nc3 {[%emt 0:03:13]} Kf8 {[%emt 0:05:45]} 27. Rhd1 {[%emt 0:06:21]} Rec8 {[%emt 0:00:32]} 28. Kb1 {[%emt 0:00:52]} Ke8 {[%emt 0:00:39]} 29. g3 {[%emt 0:04:28]} Ke7 {[%emt 0:03:16]} 30. f4 {[%emt 0:01:10]} Bg4 {[%emt 0:00:35]} 31. Rf1 {[%emt 0:00:14]} f6 {[%emt 0:01:02]} 32. Na4 {[%emt 0:04:14]} Nxa4 {[%emt 0:00:42]} 33. bxa4 {[%emt 0:00:03]} Rd8 {[%emt 0:01:01]} 34. Rff2 {[%emt 0:00:14]} Be6 {[%emt 0:06:17]} 35. b3 {[%emt 0:03:17]} c5 {[%emt 0:01:47]} 36. Kc1 {[%emt 0:00:37]} Rd4 {[%emt 0:00:12]} 37. fxe5 {[%emt 0:00:49]} fxe5 {[%emt 0:00:08]} 38. Rxd4 {[%emt 0:00:16]} cxd4 {[%emt 0:00:17]} 39. Bd3 {[%emt 0:00:43]} Rf8 {[%emt 0:05:15]} 40. Rxf8 {[%emt 0:00:04]} Kxf8 {[%emt 0:00:06]} 41. Kb2 {[%emt 0:50:06]} Ke7 {[%emt 0:03:48]} 42. Ka3 {[%emt 0:02:06]} Kd6 {[%emt 0:00:47]} 43. b4 {[%emt 0:00:00]} b6 {[%emt 0:00:35]} 44. Kb3 {[%emt 0:00:00]} Kc6 {[%emt 0:05:08]} 45. Ka3 {[%emt 0:00:00]} Bg4 {[%emt 0:00:35]} 46. Bb1 {[%emt 0:00:00]} Be2 {[%emt 0:06:56]} 47. Kb3 {[%emt 0:00:00]} Kd6 {[%emt 0:01:16]} 48. c5+ {[%emt 0:00:00]} bxc5 {[%emt 0:00:13]} 49. b5 {[%emt 0:00:00]} c4+ {[%emt 0:06:08]} 50. Kb2 {[%emt 0:00:00]} Bd1 {[%emt 0:01:37]} 51. Bc2 {[%emt 0:00:00]} Bf3 {[%emt 0:00:21]} 52. Bb1 {[%emt 0:00:00]} Kc5 {[%emt 0:00:27]} 0-1

[Event "95th Caplin Hastings Congress"]
[Site "Hastings"]
[Date "2020.01.04"]
[Round "8.25"]
[White "Bin-Suhayl, Ieysaa"]
[Black "Pavlov, Mikhail"]
[Result "1-0"]
[ECO "A59"]
[WhiteElo "2177"]
[BlackElo "1961"]
[Annotator "ChessBase"]
[PlyCount "59"]
[EventDate "2019.12.28"]
[EventType "swiss"]
[EventCountry "ENG"]
[SourceTitle "playchess.com"]
[Source "ChessBase"]
[SourceQuality "1"]
[TimeControl "40/6600+30:3000+30"]

1. d4 {[%emt 0:09:36]} Nf6 {[%emt 0:09:35]} 2. c4 {[%emt 0:00:02]} c5 {[%emt 0:00:05]} 3. d5 {[%emt 0:00:02]} b5 {[%emt 0:00:05]} 4. cxb5 {[%emt 0:00:03]} a6 {[%emt 0:00:05]} 5. bxa6 {[%emt 0:00:02]} g6 {[%emt 0:00:06]} 6. Nc3 {[%emt 0:00:03]} Bxa6 {[%emt 0:00:05]} 7. e4 {[%emt 0:00:03]} Bxf1 {[%emt 0:00:05]} 8. Kxf1 {[%emt 0:00:03]} d6 {[%emt 0:00:06]} 9. g3 {[%emt 0:00:04]} Nbd7 {[%emt 0:00:03]} 10. Nf3 {[%emt 0:00:05]} Bg7 {[%emt 0:00:05]} 11. Kg2 {[%emt 0:00:03]} O-O {[%emt 0:00:06]} 12. a4 {[%emt 0:00:15]} Qb6 {[%emt 0:00:06]} 13. Qe2 {[%emt 0:00:00]} Rfb8 {[%emt 0:00:06]} 14. Nb5 {[%emt 0:00:11]} Ne8 {[%emt 0:00:06]} 15. Bg5 {[%emt 0:00:03]} Qd8 {[%emt 0:00:09]} 16. Ra3 {[%emt 0:00:34]} h6 {[%emt 0:00:35]} 17. Bf4 {[%emt 0:00:09]} Nc7 {[%emt 0:01:38]} 18. Nxc7 {[%emt 0:00:03]} Qxc7 {[%emt 0:02:13]} 19. b3 {[%emt 0:02:09]} Qb7 {[%emt 0:03:28]} 20. Nd2 {[%emt 0:15:39]} Qb4 {[%emt 0:11:50]} 21. Nc4 {[%emt 0:15:23]} g5 {[%emt 0:08:42]} 22. Bd2 {[%emt 0:03:28]} Bc3 {[%emt 0:00:46]} 23. Bxc3 {[%emt 0:26:48]} Qxc3 {[%emt 0:02:22]} 24. h4 {[%emt 0:04:07]} Nf6 {[%emt 0:03:52]} 25. hxg5 {[%emt 0:00:29]} hxg5 {[%emt 0:00:05]} 26. b4 {[%emt 0:10:05]} Qxb4 {[%emt 0:03:12]} 27. e5 {[%emt 0:02:31]} dxe5 {[%emt 0:05:11]} 28. Qxe5 {[%emt 0:00:12]} Nh7 {[%emt 0:01:41]} 29. Rf3 {[%emt 0:00:09]} f6 {[%emt 0:02:23]} 30. Qe6+ {[%emt 0:00:09]} 1-0

[Event "95th Caplin Hastings Congress"]
[Site "Hastings"]
[Date "2020.01.04"]
[Round "8.26"]
[White "Gutierrez Carmona, Juan Alejandr"]
[Black "Chapman, Matt"]
[Result "1-0"]
[ECO "C77"]
[WhiteElo "2153"]
[BlackElo "1953"]
[Annotator "NA"]
[PlyCount "71"]
[EventDate "2019.12.28"]
[EventType "swiss"]
[EventCountry "ENG"]
[SourceTitle "playchess.com"]
[Source "ChessBase"]
[SourceQuality "1"]
[TimeControl "40/6600+30:3000+30"]

1. e4 {[%emt 0:15:51]} e5 {[%emt 0:09:51]} 2. Nf3 {[%emt 0:02:02]} Nc6 {[%emt 0:00:08]} 3. Bb5 {[%emt 0:00:05]} a6 {[%emt 0:00:17]} 4. Ba4 {[%emt 0:00:06]} Nf6 {[%emt 0:00:13]} 5. d3 {[%emt 0:00:15]} d6 {[%emt 0:00:46]} 6. c3 {[%emt 0:00:27]} g6 {[%emt 0:04:18]} 7. O-O {[%emt 0:00:11]} Bg7 {[%emt 0:00:12]} 8. h3 {[%emt 0:00:41]} O-O {[%emt 0:02:08]} 9. Re1 {[%emt 0:00:07]} h6 {[%emt 0:01:29]} 10. b4 {[%emt 0:01:08]} b5 {[%emt 0:07:08]} 11. Bb3 {[%emt 0:00:38]} a5 {[%emt 0:00:42]} 12. Bd2 {[%emt 0:07:57]} a4 {[%emt 0:11:49]} 13. Bc2 {[%emt 0:00:12]} d5 {[%emt 0:00:45]} 14. Qc1 {[%emt 0:12:43]} Kh7 {[%emt 0:02:01]} 15. Be3 {[%emt 0:03:33]} dxe4 {[%emt 0:03:43]} 16. dxe4 {[%emt 0:00:02]} Nd7 {[%emt 0:21:58]} 17. Na3 {[%emt 0:01:28]} Ba6 {[%emt 0:00:43]} 18. Bd3 {[%emt 0:09:47]} Qb8 {[%emt 0:02:21]} 19. Rd1 {[%emt 0:04:29]} Ne7 {[%emt 0:06:46]} 20. Rd2 {[%emt 0:14:37]} Rd8 {[%emt 0:01:56]} 21. Qf1 {[%emt 0:00:18]} c6 {[%emt 0:01:36]} 22. Rad1 {[%emt 0:00:05]} Qc7 {[%emt 0:01:29]} 23. c4 {[%emt 0:00:52]} Nf8 {[%emt 0:06:47]} 24. cxb5 {[%emt 0:00:50]} cxb5 {[%emt 0:00:16]} 25. Bxb5 {[%emt 0:08:09]} Rxd2 {[%emt 0:02:00]} 26. Nxd2 {[%emt 0:03:35]} Qc3 {[%emt 0:07:59]} 27. Bxa6 {[%emt 0:03:10]} Qxa3 {[%emt 0:00:00]} 28. Bc5 {[%emt 0:00:21]} Qxa2 {[%emt 0:02:01]} 29. Bxe7 {[%emt 0:02:09]} Qe6 {[%emt 0:03:51]} 30. Bb7 {[%emt 0:02:16]} Rb8 {[%emt 0:01:53]} 31. Bxf8 {[%emt 0:00:08]} Bxf8 {[%emt 0:00:04]} 32. Bd5 {[%emt 0:00:11]} Qb6 {[%emt 0:01:11]} 33. Nc4 {[%emt 0:00:43]} Qxb4 {[%emt 0:00:35]} 34. Nxe5 {[%emt 0:00:22]} Rc8 {[%emt 0:02:23]} 35. Qa6 {[%emt 0:01:49]} Rd8 {[%emt 0:07:11]} 36. Qf6 {[%emt 0:01:29]} 1-0

[Event "95th Caplin Hastings Congress"]
[Site "Hastings"]
[Date "2020.01.04"]
[Round "8.28"]
[White "Terentiev, Sergei"]
[Black "Flear, Christine"]
[Result "1-0"]
[ECO "D05"]
[WhiteElo "2292"]
[BlackElo "2045"]
[Annotator "NA"]
[PlyCount "105"]
[EventDate "2019.12.28"]
[EventType "swiss"]
[EventCountry "ENG"]
[SourceTitle "playchess.com"]
[Source "ChessBase"]
[SourceQuality "1"]
[TimeControl "40/6600+30:3000+30"]

1. c4 {[%emt 0:09:33]} e6 {[%emt 0:10:26]} 2. Nf3 {[%emt 0:08:34]} Nf6 {[%emt 0:00:18]} 3. e3 {[%emt 0:01:49]} d5 {[%emt 0:05:50]} 4. b3 {[%emt 0:00:22]} Nbd7 {[%emt 0:02:14]} 5. Bb2 {[%emt 0:00:39]} Bd6 {[%emt 0:02:57]} 6. d4 {[%emt 0:00:13]} b6 {[%emt 0:00:46]} 7. cxd5 {[%emt 0:05:04]} exd5 {[%emt 0:00:27]} 8. Bd3 {[%emt 0:00:54]} Qe7 {[%emt 0:06:48]} 9. O-O {[%emt 0:02:28]} O-O {[%emt 0:00:20]} 10. a4 {[%emt 0:01:22]} a6 {[%emt 0:10:29]} 11. Ba3 {[%emt 0:03:39]} c5 {[%emt 0:17:31]} 12. Nbd2 {[%emt 0:10:05]} Bb7 {[%emt 0:05:58]} 13. Rc1 {[%emt 0:08:13]} Ne4 {[%emt 0:09:24]} 14. Re1 {[%emt 0:01:15]} f5 {[%emt 0:00:33]} 15. Bb2 {[%emt 0:03:57]} Rac8 {[%emt 0:19:33]} 16. Nf1 {[%emt 0:05:44]} Qe6 {[%emt 0:04:15]} 17. Qe2 {[%emt 0:09:44]} a5 {[%emt 0:01:24]} 18. Rc2 {[%emt 0:02:40]} Rc7 {[%emt 0:06:23]} 19. N3d2 {[%emt 0:03:34]} Qh6 {[%emt 0:01:54]} 20. f3 {[%emt 0:04:55]} Nxd2 {[%emt 0:05:49]} 21. Rxd2 {[%emt 0:04:16]} Nb8 {[%emt 0:00:22]} 22. dxc5 {[%emt 0:07:50]} Bxc5 {[%emt 0:01:02]} 23. Rc2 {[%emt 0:02:30]} Nc6 {[%emt 0:00:30]} 24. Rcc1 {[%emt 0:00:37]} Re7 {[%emt 0:00:45]} 25. Kh1 {[%emt 0:00:18]} Nb4 {[%emt 0:01:17]} 26. Bb1 {[%emt 0:04:05]} d4 {[%emt 0:01:23]} 27. Bxd4 {[%emt 0:00:37]} Bxd4 {[%emt 0:00:30]} 28. Qc4+ {[%emt 0:00:08]} Bd5 {[%emt 0:00:49]} 29. Qxd4 {[%emt 0:00:09]} Bxb3 {[%emt 0:00:07]} 30. Ng3 {[%emt 0:00:12]} g6 {[%emt 0:00:55]} 31. Qxb6 {[%emt 0:00:18]} f4 {[%emt 0:01:30]} 32. Nf5 {[%emt 0:01:53]} Rxf5 {[%emt 0:02:22]} 33. Bxf5 {[%emt 0:00:11]} Qh4 {[%emt 0:00:45]} 34. Be4 {[%emt 0:01:29]} fxe3 {[%emt 0:00:49]} 35. Rxe3 {[%emt 0:02:12]} Qg5 {[%emt 0:00:25]} 36. f4 {[%emt 0:02:17]} Qxf4 {[%emt 0:00:25]} 37. Qd8+ {[%emt 0:02:43]} Qf8 {[%emt 0:00:08]} 38. Qxf8+ {[%emt 0:00:20]} Kxf8 {[%emt 0:00:00]} 39. Rxb3 {[%emt 0:00:08]} Rxe4 {[%emt 0:00:08]} 40. h3 {[%emt 0:00:07]} Kg7 {[%emt 0:01:28]} 41. Rc5 {[%emt 0:50:16]} h5 {[%emt 0:09:48]} 42. Rxa5 {[%emt 0:00:00]} h4 {[%emt 0:00:42]} 43. Rg5 {[%emt 0:00:00]} Re1+ {[%emt 0:08:39]} 44. Kh2 {[%emt 0:00:00]} Nc2 {[%emt 0:00:28]} 45. Rg4 {[%emt 0:00:00]} Ne3 {[%emt 0:00:35]} 46. Rxh4 {[%emt 0:00:00]} Re2 {[%emt 0:00:38]} 47. Ra3 {[%emt 0:00:00]} Rxg2+ {[%emt 0:00:44]} 48. Kh1 {[%emt 0:00:00]} Re2 {[%emt 0:00:14]} 49. Ra1 {[%emt 0:00:00]} Ng2 {[%emt 0:02:16]} 50. Rg4 {[%emt 0:00:00]} Ne1 {[%emt 0:00:37]} 51. Rg3 {[%emt 0:00:00]} Nc2 {[%emt 0:00:31]} 52. Ra2 {[%emt 0:00:00]} Re1+ {[%emt 0:01:11]} 53. Rg1 {[%emt 0:00:00]} 1-0